bitfinex/quotes_BTCUSD_20250718
["timestamp","ask_amount","ask_price","bid_price","bid_amount"]
[1752802039048,0.10477997,120230.0,120220.0,0.19840507]
[1752802039261,0.11309729,120230.0,120220.0,0.19840507]
[1752802039478,0.27944561,120230.0,120220.0,0.19840507]
[1752802039691,0.09646307,120230.0,120220.0,0.19840507]
[1752802039920,0.10478039,120230.0,120220.0,0.19840507]
[1752802040140,0.11309764,120230.0,120220.0,0.19840507]
[1752802040588,0.10478032,120230.0,120220.0,0.19840507]
[1752802040802,0.09646307,120230.0,120220.0,0.19840507]
[1752802041021,0.11309764,120230.0,120220.0,0.19840507]
[1752802041461,0.27944589,120230.0,120220.0,0.19631521]
[1752802041692,0.27944589,120230.0,120220.0,0.005]
[1752802041693,0.92927862,120230.0,120220.0,0.005]
[1752802041907,0.78715862,120230.0,120220.0,0.005]
[1752802042116,0.92927862,120230.0,120220.0,0.005]
[1752802042341,0.18302336,120210.0,120190.0,0.19424187]
[1752802042560,0.59593728,120210.0,120190.0,0.27975215]
[1752802042782,0.02495722,120200.0,120190.0,0.27975215]
[1752802042996,0.03327654,120200.0,120190.0,0.28180215]
[1752802043460,0.04363579,120200.0,120190.0,0.27348262]
[1752802043704,0.03531688,120200.0,120190.0,0.27348262]
[1752802044224,0.19338711,120200.0,120190.0,0.01324983]
[1752802044432,0.66741913,120200.0,120190.0,0.18592304]
[1752802044647,0.39658521,120200.0,120190.0,0.17960302]
[1752802044859,0.25450521,120200.0,120190.0,0.20124285]
[1752802045077,0.25450521,120200.0,120190.0,0.19924299]
[1752802045316,0.39658521,120200.0,120190.0,0.20756287]
[1752802045563,0.39658521,120200.0,120190.0,0.20956287]
[1752802045774,0.27020521,120200.0,120190.0,0.00987974]
[1752802045983,0.81687988,120200.0,120190.0,0.00987974]
[1752802046843,0.60841259,120200.0,120190.0,0.17628293]
[1752802047056,0.75049259,120200.0,120190.0,0.18460308]
[1752802047273,0.60009327,120200.0,120190.0,0.00487974]
[1752802047481,0.60009327,120200.0,120190.0,0.00887974]
[1752802047692,0.60009327,120200.0,120190.0,0.00487974]
[1752802047926,0.74217327,120200.0,120190.0,0.00487974]
[1752802048139,0.74217327,120200.0,120190.0,0.00287974]
[1752802048558,0.74217327,120200.0,120190.0,0.00387974]
[1752802049212,0.32925935,120200.0,120190.0,0.17860302]
[1752802049437,0.74217327,120200.0,120190.0,0.17760302]
[1752802049842,0.74217327,120200.0,120190.0,0.00287974]
[1752802050257,0.61569327,120200.0,120190.0,0.00587974]
[1752802050466,0.75777327,120200.0,120190.0,0.00587974]
[1752802050887,0.74217327,120200.0,120190.0,0.17228293]
[1752802051094,0.31355935,120200.0,120190.0,0.18060295]
[1752802051513,0.17147935,120200.0,120190.0,0.18892283]
[1752802051784,0.31355935,120200.0,120190.0,0.18060295]
[1752802051984,0.31355935,120200.0,120190.0,0.00587974]
[1752802052195,0.31355935,120200.0,120190.0,0.18060302]
[1752802052571,0.31355935,120200.0,120190.0,0.00587974]
[1752802052825,0.74247327,120200.0,120190.0,0.00587974]
[1752802053126,0.95689327,120200.0,120190.0,0.00587974]
[1752802053366,1.50040339,120200.0,120190.0,0.00587974]
[1752802053581,1.61193832,120200.0,120190.0,0.00587974]
[1752802053799,1.04240355,120200.0,120190.0,0.00587974]
[1752802054012,0.93539327,120200.0,120190.0,0.00587974]
[1752802054228,0.34831932,120200.0,120190.0,0.1909729]
[1752802054409,0.19966609,120200.0,120190.0,0.24813799]
[1752802054657,0.20093264,120220.0,120200.0,0.1747084]
[1752802054864,0.17470072,120220.0,120210.0,0.18506276]
[1752802055083,0.31678072,120220.0,120210.0,0.18506269]
[1752802055329,0.31678072,120220.0,120210.0,0.22936659]
[1752802055570,0.31050264,120220.0,120210.0,0.0431239]
[1752802055805,0.72341656,120220.0,120210.0,0.00205]
[1752802056008,0.18301256,120210.0,120200.0,0.20165765]
[1752802056222,0.02163871,120200.0,120190.0,0.00387974]
[1752802056434,1.10471198,120200.0,120190.0,0.00387974]
[1752802056647,1.12091198,120200.0,120190.0,0.00387974]
[1752802057079,0.70799806,120200.0,120190.0,0.00387974]
[1752802057289,1.11259252,120200.0,120190.0,0.00387974]
[1752802057930,1.11259252,120200.0,120190.0,0.00287974]
[1752802057931,1.60601672,120200.0,120190.0,0.00287974]
[1752802058114,1.62055757,120200.0,120190.0,0.00287974]
[1752802058833,1.62055757,120200.0,120190.0,0.00587974]
[1752802059042,1.62055757,120200.0,120190.0,0.00287974]
[1752802059248,1.63055757,120200.0,120190.0,0.00387974]
[1752802059527,1.64255757,120200.0,120190.0,0.00487974]
[1752802059751,1.0730228,120200.0,120190.0,0.00487974]
[1752802059963,1.2151028,120200.0,120190.0,0.00487974]
[1752802060170,1.1989028,120200.0,120190.0,0.00487974]
[1752802060390,1.09170252,120200.0,120190.0,0.00810974]
[1752802060592,0.0386383,120200.0,120190.0,0.21577257]
[1752802060800,0.22998507,120200.0,120190.0,0.21577264]
[1752802061045,0.36374664,120200.0,120190.0,0.20745304]
[1752802061256,0.36374664,120200.0,120190.0,0.22086287]
[1752802061677,0.76002212,120200.0,120190.0,0.02117974]
[1752802061892,0.77807212,120200.0,120190.0,0.00487974]
[1752802062099,0.76002212,120200.0,120190.0,0.19624291]
[1752802062310,0.76002212,120200.0,120190.0,0.20456265]
[1752802062522,0.76002212,120200.0,120190.0,0.25143526]
[1752802062523,0.75998212,120200.0,120190.0,0.25143526]
[1752802062703,0.22166623,120200.0,120190.0,0.22389272]
[1752802062935,0.36370623,120200.0,120190.0,0.23221239]
[1752802063147,0.19731688,120200.0,120190.0,0.23221239]
[1752802063365,0.22166623,120200.0,120190.0,0.22389272]
[1752802063588,0.05527688,120200.0,120190.0,0.22389272]
[1752802063815,0.18067782,120200.0,120190.0,0.28674322]
[1752802064029,0.022,120200.0,120190.0,0.28674322]
[1752802064247,0.03031898,120200.0,120190.0,0.24741239]
[1752802064465,0.03863817,120200.0,120190.0,0.37425239]
[1752802064719,0.03695742,120200.0,120190.0,0.37325239]
[1752802064924,0.02863817,120200.0,120190.0,0.37325239]
[1752802065134,0.03363817,120200.0,120190.0,0.23221239]
[1752802065345,0.02531898,120200.0,120190.0,0.30329919]
[1752802065994,0.02531891,120200.0,120190.0,0.44533919]
[1752802066168,0.017,120200.0,120190.0,0.44533919]
[1752802066419,0.017,120200.0,120190.0,0.38880947]
[1752802066652,0.017,120200.0,120190.0,0.53084947]
[1752802066890,0.02531898,120200.0,120190.0,0.47496267]
[1752802067163,0.005,120200.0,120190.0,0.47396267]
[1752802067611,0.02163789,120200.0,120190.0,0.45876267]
[1752802067837,0.005,120200.0,120190.0,0.5215805]
[1752802068055,0.005,120200.0,120190.0,0.5370805]
[1752802068973,0.09134242,120210.0,120200.0,0.19134691]
[1752802069223,0.09966105,120210.0,120200.0,0.21162691]
[1752802069432,0.09966105,120210.0,120200.0,0.28206863]
[1752802069693,0.09966098,120210.0,120200.0,0.28206863]
[1752802069902,0.10797961,120210.0,120200.0,0.28206863]
[1752802070127,0.28635511,120210.0,120200.0,0.28306863]
[1752802070352,0.27803724,120210.0,120200.0,0.27474965]
[1752802070572,0.69095116,120210.0,120200.0,0.21262698]
[1752802070800,0.69995116,120210.0,120200.0,0.21362698]
[1752802071076,0.69163267,120210.0,120200.0,0.20530793]
[1752802071304,0.67703548,120210.0,120200.0,0.00405]
[1752802071545,0.39780279,120210.0,120200.0,0.17043935]
[1752802071781,0.81903534,120210.0,120200.0,0.18707793]
[1752802072007,0.81903534,120210.0,120200.0,0.19539698]
[1752802072496,0.81903534,120210.0,120200.0,0.19539725]
[1752802072734,0.81903534,120210.0,120200.0,0.20371637]
[1752802073055,0.81903534,120210.0,120200.0,0.19539725]
[1752802073265,0.66097826,120210.0,120200.0,0.20371637]
[1752802073464,0.50030121,120210.0,120200.0,0.28186109]
[1752802073664,0.10402373,120210.0,120200.0,0.24680535]
[1752802073982,0.08490729,120210.0,120200.0,0.22318623]
[1752802074213,0.10986229,120210.0,120200.0,0.23848623]
[1752802074408,0.09322544,120210.0,120200.0,0.23848623]
[1752802074726,0.021,120210.0,120200.0,0.38810841]
[1752802075024,0.021,120210.0,120200.0,0.79897233]
[1752802075212,0.01775,120210.0,120200.0,1.20351318]
[1752802075628,0.01775,120210.0,120200.0,1.34547318]
[1752802075911,0.01775,120210.0,120200.0,1.20351318]
[1752802076492,0.00875,120210.0,120200.0,1.34443318]
[1752802076697,0.00312459,120230.0,120220.0,0.20741507]
[1752802076903,0.00312459,120230.0,120220.0,0.34716684]
[1752802077106,0.00312459,120230.0,120220.0,1.11779161]
[1752802077887,0.00312459,120230.0,120220.0,1.25971161]
[1752802078117,0.00312459,120230.0,120220.0,0.70487769]
[1752802078542,0.00312459,120230.0,120220.0,0.84679769]
[1752802078775,0.00312459,120230.0,120220.0,1.11779161]
[1752802078985,0.06938729,120270.0,120260.0,0.22365144]
[1752802079196,0.06988796,120270.0,120260.0,0.51223997]
[1752802079406,0.06988796,120270.0,120260.0,0.37035997]
[1752802079626,0.06988796,120270.0,120260.0,0.51223997]
[1752802080567,0.06988796,120270.0,120260.0,0.37035997]
[1752802080789,0.0782021,120270.0,120260.0,0.43784172]
[1752802080997,0.06988796,120270.0,120260.0,0.43784172]
[1752802081206,0.08651617,120270.0,120260.0,0.43784172]
[1752802081384,0.06988796,120270.0,120260.0,0.43784172]
[1752802081618,0.06988796,120270.0,120260.0,0.39802134]
[1752802081828,0.06988796,120270.0,120260.0,0.54307134]
[1752802082039,0.06988796,120270.0,120260.0,0.54303134]
[1752802082489,0.00350067,120270.0,120260.0,1.15410526]
[1752802082674,1e-08,120270.0,120260.0,1.21864611]
[1752802083097,1e-08,120270.0,120260.0,1.36048611]
[1752802083530,1e-08,120270.0,120260.0,0.94757219]
[1752802083746,1e-08,120270.0,120260.0,1.21864611]
[1752802083976,1e-08,120270.0,120260.0,1.41044611]
[1752802084588,1e-08,120270.0,120260.0,1.27464611]
[1752802084831,1e-08,120270.0,120260.0,1.41044611]
[1752802085265,1e-08,120270.0,120260.0,1.36544611]
[1752802086107,1e-08,120270.0,120260.0,1.41544611]
[1752802086554,1e-08,120270.0,120260.0,1.41940611]
[1752802087154,1e-08,120270.0,120260.0,1.36940611]
[1752802087576,1e-08,120270.0,120260.0,1.41940611]
[1752802089284,1e-08,120270.0,120260.0,1.00649219]
[1752802089524,1e-08,120270.0,120260.0,1.41940611]
[1752802090650,1e-08,120270.0,120260.0,1.41936611]
[1752802091278,1e-08,120270.0,120260.0,1.27764611]
[1752802091493,1e-08,120270.0,120260.0,0.76473219]
[1752802091679,1e-08,120270.0,120260.0,0.32443172]
[1752802091927,1e-08,120270.0,120260.0,0.28876172]
[1752802092136,0.0696073,120270.0,120260.0,0.43044172]
[1752802092350,0.0663873,120270.0,120260.0,0.43044172]
[1752802092562,0.0663873,120270.0,120260.0,0.44614172]
[1752802092974,0.0663873,120270.0,120260.0,0.36697919]
[1752802093184,0.0663873,120270.0,120260.0,0.44931172]
[1752802093400,0.0696073,120270.0,120260.0,0.28876172]
[1752802093620,0.0858073,120270.0,120260.0,0.43044172]
[1752802093802,0.07792144,120270.0,120260.0,0.28876172]
[1752802094037,0.07792144,120270.0,120260.0,0.43044172]
[1752802094252,0.08623571,120270.0,120260.0,0.43040172]
[1752802094681,0.08623551,120270.0,120260.0,0.43040172]
[1752802094892,0.08623544,120270.0,120260.0,0.43040172]
[1752802095310,0.09454971,120270.0,120260.0,0.43040172]
[1752802095716,0.28505717,120270.0,120260.0,0.17830633]
[1752802095918,0.28505717,120270.0,120260.0,0.32826157]
[1752802095919,0.68134268,120270.0,120260.0,0.32826157]
[1752802096131,0.10213592,120270.0,120260.0,0.19925144]
[1752802096356,0.27674304,120270.0,120260.0,0.33257661]
[1752802096547,0.27674304,120270.0,120260.0,0.33289158]
[1752802096695,0.27674304,120270.0,120260.0,0.19125158]
[1752802096906,0.27674304,120270.0,120260.0,0.19956648]
[1752802097307,0.27674304,120270.0,120260.0,0.34120648]
[1752802097745,0.27674304,120270.0,120260.0,0.34220648]
[1752802097952,0.27674304,120270.0,120260.0,0.34420648]
[1752802098143,0.27674304,120270.0,120260.0,0.34320648]
[1752802098349,0.27774304,120270.0,120260.0,0.34320648]
[1752802098549,0.27774304,120270.0,120260.0,0.33489158]
[1752802098753,0.26111442,120270.0,120260.0,0.002]
[1752802098934,0.68992834,120270.0,120260.0,0.002]
[1752802099135,0.016,120260.0,120250.0,0.18293956]
[1752802099359,0.0275349,120260.0,120250.0,0.33285508]
[1752802099560,0.66249372,120270.0,120260.0,0.19125144]
[1752802099561,0.0673873,120270.0,120260.0,0.19125144]
[1752802099758,0.00100001,120270.0,120260.0,0.27676172]
[1752802099977,0.00100001,120270.0,120260.0,0.43813172]
[1752802100178,0.00100001,120270.0,120260.0,0.29653172]
[1752802100467,0.00100001,120270.0,120260.0,0.43496172]
[1752802100684,0.00931401,120270.0,120260.0,0.43496172]
[1752802100894,0.19123485,120270.0,120260.0,0.19125144]
[1752802101103,0.22708395,120270.0,120260.0,0.31622157]
[1752802101302,0.01662959,120260.0,120250.0,0.18593887]
[1752802101547,0.11813564,120270.0,120260.0,0.19125144]
[1752802101764,0.07892137,120270.0,120260.0,0.19125144]
[1752802101962,0.00100001,120270.0,120260.0,0.27676172]
[1752802102174,1e-08,120270.0,120260.0,0.32677851]
[1752802102405,0.27686296,120270.0,120260.0,0.17462157]
[1752802102631,0.04935993,120260.0,120250.0,0.19225508]
[1752802102848,0.04935993,120260.0,120250.0,0.41836536]
[1752802103081,0.03586966,120260.0,120250.0,0.41832536]
[1752802103297,0.01145476,120260.0,120250.0,0.41832536]
[1752802104251,0.00314,120260.0,120250.0,0.41832536]
[1752802104464,0.01145469,120260.0,120250.0,0.41832536]
[1752802104686,0.01245469,120260.0,120250.0,0.41832536]
[1752802104899,0.00414,120260.0,120250.0,0.41832536]
[1752802105580,0.00414,120260.0,120250.0,0.41932536]
[1752802106545,0.01443469,120260.0,120250.0,0.41932536]
[1752802107284,0.00612,120260.0,120250.0,0.41932536]
[1752802107494,0.01443476,120260.0,120250.0,0.47490194]
[1752802107717,0.01443469,120260.0,120250.0,0.47490194]
[1752802108911,0.01443469,120260.0,120250.0,0.41932536]
[1752802109552,0.00298,120260.0,120250.0,0.42134536]
[1752802110450,0.001,120260.0,120250.0,0.42134536]
[1752802111603,0.00298,120260.0,120250.0,0.42134536]
[1752802111816,0.02274973,120260.0,120250.0,0.27776536]
[1752802112044,0.03774966,120260.0,120250.0,0.27776536]
[1752802112254,0.00612,120260.0,120250.0,0.41924536]
[1752802112461,0.00612,120260.0,120250.0,0.3224753]
[1752802112713,0.00612,120260.0,120250.0,0.4639553]
[1752802112932,0.00298,120260.0,120250.0,0.42126536]
[1752802113136,0.001,120260.0,120250.0,0.42126536]
[1752802113771,0.00298,120260.0,120250.0,0.42126536]
[1752802114192,0.001,120260.0,120250.0,0.42126536]
[1752802114854,0.00931476,120260.0,120250.0,0.42126536]
[1752802115059,0.00931469,120260.0,120250.0,0.42126536]
[1752802115509,0.02792442,120260.0,120250.0,0.42126536]
[1752802115938,0.03937959,120260.0,120250.0,0.41920536]
[1752802116150,0.22930178,120260.0,120250.0,0.2777655]
[1752802116361,0.22098702,120260.0,120250.0,0.4192055]
[1752802117464,0.22098702,120260.0,120250.0,0.2777655]
[1752802117680,0.22098702,120260.0,120250.0,0.16732016]
[1752802117903,0.22098702,120260.0,120250.0,0.31703616]
[1752802117904,0.20435688,120260.0,120250.0,0.31703616]
[1752802118126,0.22095688,120260.0,120250.0,0.30872016]
[1752802118343,0.62555556,120260.0,120250.0,0.1424]
[1752802118978,0.62555556,120260.0,120250.0,0.32535209]
[1752802119186,0.22095674,120260.0,120250.0,0.33366782]
[1752802119411,0.63387066,120260.0,120250.0,0.001]
[1752802119642,0.63387066,120260.0,120250.0,0.30872016]
[1752802119893,0.02274987,120260.0,120250.0,0.38479928]
[1752802120133,0.02792442,120260.0,120250.0,0.38681928]
[1752802120365,0.01129469,120260.0,120250.0,0.19428734]
[1752802120568,0.001,120260.0,120250.0,0.44039762]
[1752802120857,0.001,120260.0,120250.0,0.65493762]
[1752802121119,0.001,120260.0,120250.0,0.74069724]
[1752802121322,0.001,120260.0,120250.0,0.88205724]
[1752802121530,0.001,120260.0,120250.0,0.74069724]
[1752802121781,0.001,120260.0,120250.0,0.88205724]
[1752802122022,0.001,120260.0,120250.0,0.74069724]
[1752802122245,0.001,120260.0,120250.0,0.88205724]
[1752802122463,1e-08,120270.0,120260.0,0.19125144]
[1752802122676,1e-08,120270.0,120260.0,0.27878172]
[1752802123787,1e-08,120270.0,120260.0,0.28178172]
[1752802124674,1e-08,120270.0,120260.0,0.43940172]
[1752802125448,1e-08,120270.0,120260.0,0.44234172]
[1752802125660,1e-08,120270.0,120260.0,0.46014861]
[1752802126983,1e-08,120270.0,120260.0,0.31882861]
[1752802127232,1e-08,120270.0,120260.0,0.47600861]
[1752802127451,1e-08,120270.0,120260.0,1.22892253]
[1752802127675,1e-08,120270.0,120260.0,1.24346338]
[1752802129222,1e-08,120270.0,120260.0,0.83054946]
[1752802129680,1e-08,120270.0,120260.0,0.68926946]
[1752802129904,1e-08,120270.0,120260.0,0.83050946]
[1752802132294,1e-08,120270.0,120260.0,0.83046946]
[1752802132738,1e-08,120270.0,120260.0,0.68926946]
[1752802132961,1e-08,120270.0,120260.0,0.83046946]
[1752802134050,1e-08,120270.0,120260.0,0.83042946]
[1752802134263,0.00831415,120270.0,120260.0,0.63808172]
[1752802134514,0.0684673,120270.0,120260.0,0.57079679]
[1752802134699,0.0684673,120270.0,120260.0,0.42963679]
[1752802134920,1e-08,120270.0,120260.0,0.44869679]
[1752802135156,1e-08,120270.0,120260.0,0.45830172]
[1752802135376,1e-08,120270.0,120260.0,0.69189584]
[1752802135617,1e-08,120270.0,120260.0,0.1508345]
[1752802135618,0.03698001,120270.0,120260.0,0.1508345]
[1752802135912,0.03698001,120270.0,120260.0,0.003]
[1752802135913,0.67336653,120270.0,120260.0,0.003]
[1752802136330,0.67128653,120270.0,120260.0,0.001]
[1752802136539,1.1631841,120270.0,120260.0,0.001]
[1752802136748,1.1631841,120270.0,120260.0,0.003]
[1752802136955,1.1631841,120270.0,120260.0,0.002]
[1752802137277,1.1641841,120270.0,120260.0,0.002]
[1752802137608,1.1631841,120270.0,120260.0,0.002]
[1752802137813,0.17463603,120250.0,120240.0,0.14412]
[1752802138014,0.72948859,120250.0,120240.0,0.14412]
[1752802138217,0.72948859,120250.0,120240.0,0.003]
[1752802138415,0.72948859,120250.0,120240.0,0.14412]
[1752802138625,0.72948859,120250.0,120240.0,0.003]
[1752802138830,1.52395386,120250.0,120240.0,0.003]
[1752802139510,1.52395386,120250.0,120240.0,0.004]
[1752802139943,1.07048859,120250.0,120240.0,0.004]
[1752802140076,1.06948859,120250.0,120240.0,0.004]
[1752802140483,1.52295386,120250.0,120240.0,0.004]
[1752802140678,1.53195386,120250.0,120240.0,0.003]
[1752802141195,1.08348859,120250.0,120240.0,0.003]
[1752802141543,1.08556859,120250.0,120240.0,0.003]
[1752802142011,0.04399573,120250.0,120240.0,0.32704704]
[1752802142311,0.02231552,120250.0,120240.0,0.33536325]
[1752802142527,0.03063125,120250.0,120240.0,0.23780121]
[1752802142745,0.04726305,120250.0,120240.0,0.42087353]
[1752802142957,0.21358321,120250.0,120240.0,0.42087367]
[1752802143168,0.04726305,120250.0,120240.0,0.42087367]
[1752802143383,0.21358369,120250.0,120240.0,0.41255732]
[1752802143616,0.19626796,120250.0,120240.0,0.41255732]
[1752802143902,0.19326796,120250.0,120240.0,0.41255732]
[1752802144142,0.17663616,120250.0,120240.0,0.22959028]
[1752802144310,0.17663616,120250.0,120240.0,0.42087394]
[1752802144740,0.17663616,120250.0,120240.0,0.41255752]
[1752802145127,0.17663616,120250.0,120240.0,0.2951905]
[1752802145332,0.16832016,120250.0,120240.0,0.42791401]
[1752802146546,0.72079779,120250.0,120240.0,0.10390677]
[1752802146762,0.70865272,120250.0,120240.0,0.15943649]
[1752802147283,0.00728,120250.0,120240.0,0.16148649]
[1752802147505,0.20158279,120250.0,120240.0,0.30718388]
[1752802147735,0.0269467,120250.0,120240.0,0.46485637]
[1752802148184,0.01863097,120250.0,120240.0,0.32381637]
[1752802148396,0.01863097,120250.0,120240.0,0.46481637]
[1752802148629,0.0269467,120250.0,120240.0,0.46481637]
[1752802148870,0.01863097,120250.0,120240.0,0.46481637]
[1752802149091,0.01031538,120250.0,120240.0,0.46481637]
[1752802149292,0.002,120250.0,120240.0,0.52876421]
[1752802149523,0.002,120250.0,120240.0,0.54476421]
[1752802150674,0.002,120250.0,120240.0,0.54476209]
[1752802150881,0.002,120250.0,120240.0,0.40376209]
[1752802151153,0.002,120250.0,120240.0,0.48081425]
[1752802151787,0.002,120250.0,120240.0,0.48281425]
[1752802151997,0.002,120250.0,120240.0,0.34181425]
[1752802152214,0.002,120250.0,120240.0,0.48277425]
[1752802152444,0.00831483,120260.0,120250.0,0.20626686]
[1752802152445,0.00831469,120260.0,120250.0,0.20626686]
[1752802152672,0.00831469,120260.0,120250.0,0.30922151]
[1752802152879,0.00831469,120260.0,120250.0,0.45018151]
[1752802153086,0.25762332,120270.0,120260.0,0.19125164]
[1752802153293,0.25970332,120270.0,120260.0,0.29215629]
[1752802153503,0.26290332,120270.0,120260.0,0.29215643]
[1752802153700,0.26290332,120270.0,120260.0,0.3004714]
[1752802154361,0.26290332,120270.0,120260.0,0.29215643]
[1752802154808,0.26490332,120270.0,120260.0,0.28384139]
[1752802155038,0.26490332,120270.0,120260.0,0.43307643]
[1752802155253,0.26490332,120270.0,120260.0,0.4413914]
[1752802155406,0.26490332,120270.0,120260.0,0.42476139]
[1752802155617,0.69342522,120270.0,120260.0,0.01539437]
[1752802155974,0.72552522,120270.0,120260.0,0.01539437]
[1752802156116,1.06344522,120270.0,120260.0,0.01539437]
[1752802156357,1.30441635,120270.0,120260.0,0.01214437]
[1752802156770,1.1489555,120270.0,120260.0,0.01214437]
[1752802156968,1.2898355,120270.0,120260.0,0.01214437]
[1752802157188,0.18295169,120250.0,120240.0,0.14388]
[1752802157386,0.65201696,120250.0,120240.0,0.14388]
[1752802157571,0.65521696,120250.0,120240.0,0.14388]
[1752802157767,0.20175169,120250.0,120240.0,0.14388]
[1752802157945,0.18615169,120250.0,120240.0,0.14388]
[1752802158159,0.63961696,120250.0,120240.0,0.14388]
[1752802158528,0.63961696,120250.0,120240.0,0.14588]
[1752802158947,0.63641696,120250.0,120240.0,0.14588]
[1752802159386,0.63641696,120250.0,120240.0,0.14688]
[1752802160245,0.63641696,120250.0,120240.0,0.14388]
[1752802160458,0.18395169,120250.0,120240.0,0.18696717]
[1752802160673,0.18395169,120250.0,120240.0,0.33616359]
[1752802161110,0.18395169,120250.0,120240.0,0.32784717]
[1752802161343,0.17563603,120250.0,120240.0,0.31121399]
[1752802161555,0.17771603,120250.0,120240.0,0.32989704]
[1752802161771,0.6311813,120250.0,120240.0,0.32158055]
[1752802162443,0.62286543,120250.0,120240.0,0.32989704]
[1752802162687,0.62286543,120250.0,120240.0,0.31326399]
[1752802162688,0.17771603,120250.0,120240.0,0.31326399]
[1752802162907,0.17771603,120250.0,120240.0,0.14484]
[1752802163345,0.6311813,120250.0,120240.0,0.14484]
[1752802164011,0.6311813,120250.0,120240.0,0.31117399]
[1752802164869,0.6311813,120250.0,120240.0,0.14484]
[1752802167366,0.6342213,120250.0,120240.0,0.14484]
[1752802168096,0.6342213,120250.0,120240.0,0.31949068]
[1752802168303,0.6311813,120250.0,120240.0,0.31949068]
[1752802168514,0.62286543,120250.0,120240.0,0.31117399]
[1752802169139,0.62286543,120250.0,120240.0,0.31949068]
[1752802169452,0.62286543,120250.0,120240.0,0.32780724]
[1752802169891,0.62286543,120250.0,120240.0,0.32995724]
[1752802170311,0.62286543,120250.0,120240.0,0.33827373]
[1752802170950,0.62286543,120250.0,120240.0,0.34659015]
[1752802171686,0.62286543,120250.0,120240.0,0.3549065]
[1752802171886,0.62286543,120250.0,120240.0,0.33827387]
[1752802172374,0.62286543,120250.0,120240.0,0.004]
[1752802172585,0.62286543,120250.0,120240.0,0.14468]
[1752802173058,0.62286543,120250.0,120240.0,0.31101399]
[1752802173300,0.62286543,120250.0,120240.0,0.14468]
[1752802174937,0.63275037,120250.0,120240.0,0.31101399]
[1752802175393,0.1792851,120250.0,120240.0,0.31933068]
[1752802175622,0.63275037,120250.0,120240.0,0.14468]
[1752802177525,0.1792851,120250.0,120240.0,0.14468]
[1752802177733,0.63275037,120250.0,120240.0,0.14468]
[1752802178374,0.63275037,120250.0,120240.0,0.004]
[1752802178613,0.63579037,120250.0,120240.0,0.1446]
[1752802179060,0.6634997,120250.0,120240.0,0.1446]
[1752802179720,0.6634997,120250.0,120240.0,0.14456]
[1752802179956,0.6634997,120250.0,120240.0,0.004]
[1752802179957,1.2847343,120250.0,120240.0,0.004]
[1752802180626,1.3101314,120250.0,120240.0,0.004]
[1752802180857,0.2400222,120250.0,120240.0,0.004]
[1752802181091,0.83452469,120250.0,120240.0,0.004]
[1752802181793,0.83448469,120250.0,120240.0,0.004]
[1752802182446,1.14790718,120250.0,120240.0,0.004]
[1752802182686,1.23341746,120250.0,120240.0,0.004]
[1752802182891,1.71393746,120250.0,120240.0,0.004]
[1752802183542,1.71389746,120250.0,120240.0,0.004]
[1752802183755,1.57341746,120250.0,120240.0,0.004]
[1752802183955,1.71389746,120250.0,120240.0,0.004]
[1752802189092,0.80601248,120250.0,120240.0,0.004]
[1752802189332,1.71389746,120250.0,120240.0,0.004]
[1752802190781,1.71389746,120250.0,120240.0,0.003]
[1752802191195,1.71289746,120250.0,120240.0,0.003]
[1752802191411,1.71277746,120250.0,120240.0,0.003]
[1752802191621,1.71477746,120250.0,120240.0,0.003]
[1752802191854,1.71277746,120250.0,120240.0,0.003]
[1752802192204,1.72077746,120250.0,120240.0,0.003]
[1752802192611,1.58041746,120250.0,120240.0,0.003]
[1752802193033,1.72077746,120250.0,120240.0,0.003]
[1752802193816,1.72577746,120250.0,120240.0,0.003]
[1752802195602,1.58541746,120250.0,120240.0,0.003]
[1752802195826,0.02288494,120250.0,120240.0,0.22366717]
[1752802196031,0.20583621,120250.0,120240.0,0.25871974]
[1752802196253,0.22246787,120250.0,120240.0,0.23198359]
[1752802196457,0.23078387,120250.0,120240.0,0.23198359]
[1752802196664,0.21746842,120250.0,120240.0,0.23198359]
[1752802197070,0.03451633,120250.0,120240.0,0.23198359]
[1752802197276,0.03451633,120250.0,120240.0,0.2809646]
[1752802197480,0.0428322,120250.0,120240.0,0.23198359]
[1752802197687,0.0511482,120250.0,120240.0,0.24029994]
[1752802197890,0.0431482,120250.0,120240.0,0.23198359]
[1752802198297,0.21146836,120250.0,120240.0,0.22366724]
[1752802198515,0.21146836,120250.0,120240.0,0.24030008]
[1752802198726,0.66541085,120250.0,120240.0,0.20703399]
[1752802198889,0.64877946,120250.0,120240.0,0.19093399]
[1752802199559,0.64877946,120250.0,120240.0,0.19925068]
[1752802199736,0.64877946,120250.0,120240.0,0.20756724]
[1752802199905,0.64877946,120250.0,120240.0,0.0408]
[1752802200120,0.64877946,120250.0,120240.0,0.20713399]
[1752802200342,0.78066359,120250.0,120240.0,0.0408]
[1752802200547,0.78066359,120250.0,120240.0,0.21545062]
[1752802200761,0.78066359,120250.0,120240.0,0.20713399]
[1752802200968,0.3267211,120250.0,120240.0,0.21545062]
[1752802201250,0.78066359,120250.0,120240.0,0.0408]
[1752802201454,0.78066359,120250.0,120240.0,0.0246]
[1752802201664,1.09651608,120250.0,120240.0,0.003]
[1752802201883,1.61154608,120250.0,120240.0,0.003]
[1752802202111,1.69705636,120250.0,120240.0,0.003]
[1752802202341,1.55685636,120250.0,120240.0,0.003]
[1752802202776,1.69701636,120250.0,120240.0,0.003]
[1752802202991,1.69701636,120250.0,120240.0,1e-08]
[1752802203208,1.55685636,120250.0,120240.0,1e-08]
[1752802203424,1.69701636,120250.0,120240.0,1e-08]
[1752802203853,1.55685636,120250.0,120240.0,1e-08]
[1752802204067,1.69697636,120250.0,120240.0,1e-08]
[1752802205829,1.00982461,120230.0,120220.0,1e-08]
[1752802206039,1.23756489,120230.0,120220.0,1e-08]
[1752802206500,1.24059489,120230.0,120220.0,1e-08]
[1752802207165,1.24059489,120230.0,120170.0,0.0165]
[1752802207166,0.16640319,120190.0,120170.0,0.0165]
[1752802207391,0.77087024,120180.0,120170.0,0.00302066]
[1752802207615,0.77390024,120180.0,120170.0,0.00090066]
[1752802207837,0.98902024,120180.0,120170.0,0.00090066]
[1752802208061,1.15964531,120180.0,120170.0,0.00090066]
[1752802208526,1.03586531,120180.0,120170.0,0.00090066]
[1752802208745,1.17594531,120180.0,120170.0,0.00390066]
[1752802208965,1.17594531,120180.0,120170.0,0.00090066]
[1752802209402,1.23091052,120180.0,120170.0,0.00090066]
[1752802209617,1.23091052,120180.0,120160.0,0.003]
[1752802209618,1.00049477,120170.0,120160.0,0.003]
[1752802209809,1.54205754,120170.0,120160.0,0.00314982]
[1752802210067,1.68512754,120170.0,120160.0,0.00314982]
[1752802210517,1.54508754,120170.0,120160.0,1e-08]
[1752802210739,1.68512754,120170.0,120160.0,1e-08]